bitfinex/quotes_SOLUSD_20241001
["timestamp","ask_amount","ask_price","bid_price","bid_amount"]
[1727792930721,16.303,153.35,153.26,31.7809]
[1727792930911,6.5233,153.3,153.26,16.3116]
[1727792931422,6.5237,153.29,153.25,6.5251]
[1727792932909,6.5237,153.29,153.24,6.5256]
[1727792933722,20.0,153.34,153.24,23.776884]
[1727792933920,6.5232,153.3,153.26,6.5247]
[1727792934823,37.9765,153.35,153.25,16.3127]
[1727792934824,20.0,153.34,153.25,16.3127]
[1727792935130,6.5237,153.29,153.25,16.3127]
[1727792935506,6.5232,153.3,153.25,22.8378]
[1727792935705,6.523,153.31,153.26,30.301284]
[1727792935921,37.9765,153.35,153.28,6.5238]
[1727792935922,6.5224,153.32,153.28,6.5238]
[1727792936231,6.5224,153.32,153.29,1.30450975]
[1727792936416,6.522,153.33,153.29,1.30450975]
[1727792936608,6.522,153.33,153.29,23.776884]
[1727792938212,6.523,153.31,153.27,16.3105]
[1727792940914,6.5231,153.3,153.25,30.302084]
[1727792941124,16.304,153.34,153.24,22.8392]
[1727792941432,6.5243,153.28,153.24,16.3136]
[1727792941609,6.5243,153.28,153.24,22.8392]
[1727792942238,20.0,153.33,153.25,1.30477755]
[1727792942418,6.5228,153.31,153.26,1.30460671]
[1727792942613,6.5228,153.31,153.27,6.5243]
[1727792942812,6.5228,153.31,153.26,1.30460671]
[1727792942813,6.5228,153.31,153.26,6.5247]
[1727792943013,20.0,153.34,153.25,23.776884]
[1727792943217,21.6735,153.35,153.29,6.5235]
[1727792943513,6.5215,153.34,153.3,7.82736653]
[1727792944138,6.5215,153.34,153.29,23.776884]
[1727792944516,6.5215,153.34,153.29,30.300184]
[1727792945707,54.6971,153.39,153.31,23.776884]
[1727792945708,6.5205,153.37,153.31,23.776884]
[1727792945909,38.3977,153.39,153.31,23.776884]
[1727792946146,38.3977,153.39,153.3,16.3068]
[1727792946440,38.3977,153.39,153.28,23.776884]
[1727792946934,20.0,153.38,153.28,23.776884]
[1727792947234,6.5228,153.31,153.27,16.3106]
[1727792947436,6.5214,153.35,153.31,6.5226]
[1727792947614,6.5207,153.36,153.32,1.30418258]
[1727792947812,20.0,153.38,153.29,16.3085]
[1727792948023,6.5224,153.32,153.27,6.5243]
[1727792948426,16.3013,153.37,153.27,23.776884]
[1727792948641,20.0,153.38,153.27,23.776884]
[1727792948810,16.302,153.36,153.28,1.30451527]
[1727792949017,20.0,153.38,153.29,23.776884]
[1727792949230,22.0989,153.39,153.31,6.5225]
[1727792949231,38.3978,153.39,153.31,6.5225]
[1727792949439,6.5206,153.36,153.32,7.8263474]
[1727792949941,6.5206,153.36,153.32,1.3041474]
[1727792950330,6.5205,153.37,153.33,23.776884]
[1727792951228,6.5205,153.37,153.33,30.298684]
[1727792951624,22.0989,153.39,153.33,23.776884]
[1727792951824,22.0989,153.39,153.32,23.776884]
[1727792952044,22.0989,153.39,153.31,23.776884]
[1727792952344,22.0989,153.39,153.33,6.5217]
[1727792952518,6.5205,153.37,153.33,23.776884]
[1727792952717,38.8864,153.43,153.34,7.82540743]
[1727792952938,6.5194,153.39,153.34,7.82540743]
[1727792953754,6.5188,153.41,153.36,6.5203]
[1727792953928,22.5918,153.43,153.37,1.3038035]
[1727792954135,6.5179,153.43,153.38,30.296384]
[1727792954440,6.5181,153.42,153.37,30.296984]
[1727792955445,6.5199,153.38,153.35,23.776884]
[1727792955742,16.2962,153.41,153.34,23.776884]
[1727792955922,16.2962,153.41,153.35,1.3039865]
[1727792956122,6.5202,153.37,153.35,1.3039865]
[1727792956323,6.5202,153.37,153.33,1.30402707]
[1727792957023,6.5202,153.37,153.32,6.5222]
[1727792957217,16.2962,153.41,153.33,25.08091139]
[1727792957444,6.5196,153.39,153.35,23.776884]
[1727792957823,16.293,153.44,153.35,23.776884]
[1727792958125,6.5204,153.37,153.33,6.5217]
[1727792958444,16.2956,153.42,153.34,1.30404484]
[1727792958445,35.7993,153.42,153.34,1.30404484]
[1727792958746,35.7993,153.42,153.3,1.30408212]
[1727792958931,6.5206,153.36,153.31,6.5225]
[1727792959128,16.2978,153.4,153.3,22.8302]
[1727792959331,6.5218,153.33,153.3,16.3072]
[1727792959541,6.5223,153.32,153.28,6.5239]
[1727792959746,6.522,153.33,153.28,6.5239]
[1727792960245,6.522,153.33,153.29,6.5235]
[1727792960436,6.522,153.33,153.27,16.3104]
[1727792960753,6.522,153.33,153.28,6.5239]
[1727792961044,6.522,153.33,153.29,23.776884]
[1727792961442,6.5222,153.33,153.28,6.5238]
[1727792961647,16.3,153.38,153.28,6.5238]
[1727792961841,20.0,153.38,153.25,16.2613]
[1727792962248,16.3042,153.34,153.26,6.5248]
[1727792963023,6.5227,153.31,153.26,6.5248]
[1727792963233,16.301,153.37,153.28,23.776884]
[1727792963441,6.5219,153.33,153.29,1.30439401]
[1727792963746,6.5219,153.33,153.29,6.5235]
[1727792964237,6.5211,153.35,153.3,31.60414093]
[1727792964422,6.521,153.36,153.31,6.5223]
[1727792964625,6.3778,153.39,153.31,6.5223]
[1727792964626,6.3778,153.39,153.31,16.3061]
[1727792964949,6.5217,153.34,153.32,23.776884]
[1727792965138,6.5217,153.34,153.29,6.5232]
[1727792965347,6.5219,153.33,153.3,23.776884]
[1727792965648,6.5219,153.33,153.29,6.5232]
[1727792965649,6.5198,153.38,153.33,6.5217]
[1727792965824,6.5203,153.37,153.34,1.30405162]
[1727792966024,15.7993,153.42,153.36,23.776884]
[1727792966234,6.5188,153.41,153.37,7.82385199]
[1727792966655,6.5188,153.41,153.37,1.30375199]
[1727792967151,16.5395,153.46,153.37,1.30375199]
[1727792967152,6.5181,153.42,153.38,30.296584]
[1727792967327,16.5395,153.46,153.39,1.30356278]
[1727792967536,6.5176,153.43,153.39,1.30356278]
[1727792968631,6.5171,153.45,153.4,23.776884]
[1727792968834,6.5171,153.45,153.41,1.30341953]
[1727792969846,6.3491,153.48,153.41,1.30341953]
[1727792969847,6.5158,153.48,153.42,30.294884]
[1727792970049,6.5151,153.49,153.44,30.293984]
[1727792970247,6.5155,153.48,153.44,23.776884]
[1727792971366,6.5159,153.47,153.42,6.518]
[1727792971543,6.5159,153.47,153.43,23.776884]
[1727792971750,6.5169,153.45,153.42,23.776884]
[1727792972257,6.5169,153.45,153.4,23.776884]
[1727792972561,6.5159,153.47,153.42,23.776884]
[1727792972746,6.517,153.45,153.42,23.776884]
[1727792972940,6.517,153.45,153.4,22.8151]
[1727792972941,16.2868,153.5,153.41,23.776884]
[1727792973334,6.5169,153.45,153.41,23.776884]
[1727792973541,20.0,153.49,153.37,16.3002]
[1727792973842,16.2868,153.5,153.39,6.5192]
[1727792973843,6.5171,153.45,153.39,6.5192]
[1727792974029,6.5171,153.45,153.4,1.30343452]
[1727792974362,16.2868,153.5,153.4,7.82223452]
[1727792974651,6.5164,153.46,153.4,1.30343452]
[1727792974854,6.5168,153.45,153.41,23.776884]
[1727792975043,16.2868,153.5,153.43,23.776884]
[1727792975759,6.5163,153.47,153.43,23.776884]
[1727792975933,6.5167,153.46,153.4,6.5184]
[1727792976136,6.5167,153.46,153.41,23.776884]
[1727792976745,6.5167,153.46,153.42,25.08015755]
[1727792976943,6.5167,153.46,153.42,23.776884]
[1727792977533,6.5168,153.45,153.42,23.776884]
[1727792977751,6.5168,153.45,153.43,1.30329087]
[1727792977949,6.5168,153.45,153.42,23.776884]
[1727792978257,6.5168,153.45,153.41,23.776884]
[1727792978449,16.2868,153.5,153.42,23.776884]
[1727792978757,6.5163,153.46,153.42,23.776884]
[1727792979054,6.5164,153.46,153.42,23.776884]
[1727792979754,6.5173,153.44,153.4,23.776884]
[1727792979935,20.0,153.49,153.4,23.776884]
[1727792980136,16.2868,153.5,153.41,6.5184]
[1727792980457,6.5163,153.46,153.42,30.294784]
[1727792980645,6.5155,153.48,153.44,6.5171]
[1727792980833,6.5155,153.48,153.45,1.30315533]
[1727792981446,6.5151,153.49,153.46,23.776884]
[1727792981655,22.8121,153.53,153.47,1.30298634]
[1727792981853,6.5149,153.5,153.47,1.30298634]
[1727792982049,6.5143,153.51,153.47,1.30298634]
[1727792982255,6.5147,153.5,153.46,23.776884]
[1727792983162,6.5147,153.5,153.47,1.30295557]
[1727792983533,6.5147,153.5,153.46,23.776884]
[1727792983754,22.8121,153.53,153.46,23.776884]
[1727792983941,22.8121,153.53,153.42,16.295]
[1727792983942,6.5159,153.47,153.44,23.776884]
[1727792984143,6.5163,153.46,153.42,16.295]
[1727792984640,6.5179,153.43,153.39,16.2978]
[1727792984838,16.2887,153.48,153.41,6.5184]
[1727792984839,6.5168,153.45,153.41,6.5184]
[1727792985064,6.5168,153.45,153.42,1.30333981]
[1727792985569,6.5174,153.44,153.39,22.8169]
[1727792985757,16.2887,153.48,153.39,16.2978]
[1727792986063,6.5173,153.44,153.4,7.82227385]
[1727792986362,6.5173,153.44,153.4,6.5188]
[1727792986859,6.5176,153.43,153.39,22.817]
[1727792987156,6.5176,153.43,153.39,16.2978]
[1727792987368,6.5176,153.43,153.39,22.817]
[1727792987859,6.3773,153.45,153.33,14.14759917]
[1727792988068,6.3773,153.45,153.37,6.5201]
[1727792988069,6.5188,153.41,153.37,6.5201]
[1727792988366,6.5188,153.41,153.38,1.30366236]
[1727792988563,22.6695,153.45,153.38,6.5196]
[1727792988865,6.5187,153.41,153.39,1.30360387]
[1727792989080,6.5186,153.41,153.36,16.3014]
[1727792989364,6.5186,153.41,153.37,25.08054389]
[1727792989575,6.5186,153.41,153.37,31.60054389]
[1727792990362,6.3773,153.45,153.38,17.60255864]
[1727792990540,12.8944,153.45,153.4,6.5188]
[1727792991264,16.0552,153.47,153.43,6.5173]
[1727792991265,22.5712,153.47,153.43,6.5173]
[1727792991465,22.5712,153.47,153.39,23.776884]
[1727792991466,6.5168,153.45,153.41,23.776884]
[1727792992376,6.5164,153.46,153.42,1.30334836]
[1727792992549,16.0552,153.47,153.43,23.776884]
[1727792992747,22.5711,153.47,153.44,1.3032133]
[1727792992944,6.5167,153.45,153.43,23.776884]
[1727792993156,6.5167,153.45,153.42,23.776884]
[1727792993463,16.0552,153.47,153.42,23.776884]
[1727792993769,6.5155,153.48,153.44,30.294084]
[1727792993949,6.5155,153.48,153.45,1.30311231]
[1727792994271,13.1774,153.49,153.45,1.30311231]
[1727792994568,13.1774,153.49,153.45,7.81981231]
[1727792994759,13.1774,153.49,153.44,23.776884]
[1727792994760,6.5156,153.48,153.44,30.293984]
[1727792996268,6.6621,153.49,153.44,23.776884]
[1727792996468,6.6621,153.49,153.41,23.776884]
[1727792996966,6.5172,153.44,153.41,23.776884]
[1727792997176,6.5168,153.45,153.41,23.776884]
[1727792997470,6.5163,153.46,153.42,6.5179]
[1727792998167,6.5163,153.46,153.41,23.776884]
[1727792998465,6.5168,153.45,153.41,30.295184]
[1727792998851,6.6621,153.49,153.41,23.776884]
[1727792999064,6.5177,153.43,153.41,23.776884]
[1727792999455,16.2907,153.47,153.38,16.2987]
[1727792999963,6.5173,153.44,153.4,6.5186]
[1727793000380,6.6621,153.49,153.41,1.30345212]
[1727793000543,6.6621,153.49,153.35,15.0427]
[1727793000544,20.0,153.48,153.35,15.0427]
[1727793000743,20.0,153.48,153.34,6.521]
[1727793000744,15.6926,153.45,153.34,6.521]
[1727793000966,6.5205,153.37,153.32,6.5222]
[1727793001173,16.2958,153.42,153.32,6.5222]
[1727793001349,16.2958,153.42,153.33,6.5218]
[1727793001549,6.0696,153.43,153.29,6.4683]
[1727793001768,6.0696,153.43,153.37,6.5201]
[1727793001967,6.0696,153.43,153.35,16.3021]
[1727793002150,6.0696,153.43,153.37,16.2998]
[1727793002347,6.0696,153.43,153.38,7.82294975]
[1727793002348,12.5873,153.43,153.38,7.82294975]
[1727793002556,6.5176,153.44,153.4,6.5187]
[1727793002752,15.6926,153.45,153.39,16.2978]
[1727793002951,15.1926,153.45,153.39,23.776884]
[1727793003150,6.5183,153.42,153.39,23.776884]
[1727793003362,6.5164,153.46,153.42,6.5179]
[1727793003570,6.5176,153.43,153.39,30.296084]
[1727793003773,6.5167,153.46,153.42,6.518]
[1727793003959,6.3075,153.47,153.43,1.30327125]
[1727793004157,6.5151,153.49,153.44,30.293684]
[1727793004469,6.1975,153.51,153.46,23.776884]
[1727793004470,6.5147,153.5,153.46,23.776884]
[1727793004669,6.1975,153.51,153.43,16.2933]
[1727793004670,6.5159,153.47,153.43,16.2933]
[1727793005170,6.5159,153.47,153.44,23.776884]
[1727793005372,6.1975,153.51,153.43,16.2933]
[1727793005373,6.1975,153.51,153.43,23.776884]
[1727793005575,6.1975,153.51,153.34,25.05912566]
[1727793005576,38.77,153.51,153.34,25.05912566]
[1727793005868,6.5163,153.46,153.41,6.5184]
[1727793006054,6.5175,153.44,153.39,22.8167]
[1727793006384,6.5196,153.39,153.34,6.5213]
[1727793006674,16.5703,153.41,153.33,16.3042]
[1727793006855,6.52,153.38,153.33,16.3042]
[1727793007052,16.5703,153.41,153.3,15.9582]
[1727793007053,6.5204,153.37,153.32,6.5222]
[1727793007250,20.0,153.4,153.26,15.9582]
[1727793007455,6.1922,153.37,153.27,16.3108]
[1727793007654,6.5223,153.32,153.27,22.8352]
[1727793008176,16.305,153.33,153.23,16.3145]
[1727793008348,6.5235,153.3,153.23,16.3145]
[1727793008553,16.305,153.33,153.23,16.3145]
[1727793008554,6.5237,153.29,153.23,16.3145]
[1727793009049,6.5237,153.29,153.23,24.14538136]
[1727793009462,6.5237,153.29,153.23,22.8406]
[1727793009655,6.5237,153.29,153.23,16.3145]
[1727793009855,6.5237,153.29,153.24,6.5256]
[1727793010055,6.5237,153.29,153.23,16.3145]
[1727793010766,6.5237,153.29,153.24,23.776884]
[1727793011573,6.5249,153.26,153.19,22.8463]
[1727793011789,6.5252,153.25,153.19,22.8463]
[1727793012473,6.4947,153.28,153.2,1.30521662]
[1727793012776,20.0,153.27,153.19,16.3189]
[1727793012956,6.5262,153.23,153.17,6.5286]
[1727793013477,6.5266,153.22,153.16,1.2123638]
[1727793013864,6.5261,153.23,153.16,1.2123638]
[1727793014169,6.5256,153.25,153.19,6.5278]
[1727793014374,22.8037,153.26,153.2,7.832187]
[1727793014876,22.8037,153.26,153.21,6.5269]
[1727793015181,22.8037,153.26,153.22,1.30508623]
[1727793015365,16.2788,153.26,153.22,7.83148623]
[1727793015681,13.0189,153.28,153.23,30.302984]
[1727793016061,6.4947,153.28,153.24,1.30487236]
[1727793016267,6.4947,153.28,153.24,7.83047236]
[1727793016475,6.4947,153.28,153.25,31.60692775]
[1727793016680,15.5137,153.3,153.25,31.60692775]
[1727793016881,15.5137,153.3,153.26,6.5248]
[1727793017084,15.5137,153.3,153.27,1.30468147]
[1727793017689,6.525,153.26,153.21,6.5265]
[1727793018156,6.525,153.26,153.22,23.776884]
[1727793018363,15.5137,153.3,153.2,16.3185]
[1727793018565,36.3089,153.29,153.2,16.3185]
[1727793018762,6.5269,153.22,153.17,16.3216]
[1727793018989,16.312,153.27,153.17,16.3216]
[1727793019293,6.5257,153.24,153.19,6.5277]
[1727793019599,6.5261,153.23,153.18,6.5281]
[1727793020087,6.5266,153.22,153.17,22.8502]
[1727793020385,20.0,153.29,153.16,1.2123638]
[1727793020386,6.1295,153.23,153.16,1.2123638]
[1727793020892,6.1295,153.23,153.16,0.7123638]
[1727793020893,16.2728,153.22,153.16,0.7123638]
[1727793021185,32.5892,153.22,153.16,0.7123638]
[1727793021372,6.5274,153.2,153.16,0.7123638]
[1727793022190,16.2728,153.22,153.17,1.30559067]
[1727793022392,16.2728,153.22,153.17,16.3216]
[1727793022567,16.2728,153.22,153.17,22.8502]
[1727793023084,16.2728,153.22,153.18,23.776884]
[1727793023382,16.2728,153.22,153.17,22.8502]
[1727793023383,6.1295,153.23,153.2,23.776884]
[1727793023585,6.1295,153.23,153.17,22.8502]
[1727793023794,6.1295,153.23,153.18,23.776884]
[1727793023965,6.5265,153.22,153.18,23.776884]
[1727793024167,6.527,153.21,153.18,23.776884]
[1727793024476,6.527,153.21,153.17,16.3216]
[1727793025594,6.5274,153.2,153.17,23.776884]
[1727793026289,6.1295,153.23,153.17,23.776884]
[1727793026477,6.5269,153.22,153.17,30.305384]
[1727793026680,6.1295,153.23,153.18,7.83364902]
[1727793026868,6.1295,153.23,153.19,6.5277]
[1727793027065,6.5266,153.22,153.17,30.305184]
[1727793027283,12.6557,153.23,153.18,7.83345314]
[1727793027690,6.1295,153.23,153.17,23.776884]
[1727793028190,6.527,153.21,153.17,30.305484]
[1727793028568,6.5266,153.22,153.17,30.305484]
[1727793029784,6.1295,153.23,153.16,17.0348638]
[1727793029997,6.5274,153.2,153.16,17.0348638]
[1727793030194,6.5274,153.2,153.16,23.5638638]
[1727793030570,6.5274,153.2,153.16,17.0348638]
[1727793031079,6.5274,153.2,153.16,23.5638638]
[1727793031285,6.5274,153.2,153.16,17.0348638]
[1727793031497,6.1295,153.23,153.16,0.7123638]
[1727793031498,6.5286,153.18,153.16,0.7123638]
[1727793031669,6.5278,153.2,153.16,0.7123638]
[1727793032773,6.5278,153.2,153.17,1.30554403]
[1727793033191,6.5273,153.21,153.17,1.30554403]
[1727793033375,6.5275,153.2,153.16,7.2413638]
[1727793033572,6.5275,153.2,153.16,0.7123638]
[1727793034773,6.5278,153.19,153.16,0.7123638]
[1727793035391,22.4453,153.23,153.16,0.7123638]
[1727793035596,6.5281,153.19,153.16,0.7123638]
[1727793035894,22.4453,153.23,153.16,0.7123638]
[1727793036192,6.1295,153.23,153.17,30.305384]
[1727793036395,6.1295,153.23,153.18,7.83331726]
[1727793036588,31.6925,153.26,153.18,7.83331726]
[1727793036589,6.5253,153.25,153.19,23.776884]
[1727793036902,6.5266,153.22,153.19,23.776884]
[1727793037273,15.3801,153.26,153.17,23.776884]
[1727793037274,16.3137,153.25,153.17,23.776884]
[1727793037505,6.5279,153.19,153.16,0.7123638]
[1727793038481,16.3157,153.23,153.16,0.7123638]
[1727793038804,6.5286,153.17,153.16,0.7123638]
[1727793039104,20.0,153.22,153.16,0.7123638]
[1727793039105,6.5282,153.18,153.16,0.7123638]
[1727793039608,6.5279,153.19,153.16,0.7123638]
[1727793039777,6.527,153.21,153.17,1.30561307]
[1727793040399,6.527,153.21,153.16,7.2410638]
[1727793040898,6.527,153.21,153.17,23.776884]
[1727793041106,6.5274,153.2,153.17,23.776884]
[1727793041407,6.5274,153.2,153.16,0.7123638]
[1727793041580,64.3171,153.26,153.16,0.7123638]
[1727793041787,6.5262,153.23,153.17,40.097884]
[1727793042098,31.6924,153.26,153.17,46.626484]
[1727793042099,6.5265,153.22,153.17,46.626484]
[1727793042293,6.5271,153.21,153.17,40.097884]
[1727793042491,31.6924,153.26,153.17,23.776884]
[1727793042701,6.5276,153.2,153.17,23.776884]
[1727793043004,31.6924,153.26,153.16,0.7123638]
[1727793043188,6.5278,153.19,153.16,0.7123638]
[1727793043392,6.5286,153.18,153.16,0.7123638]
[1727793044110,6.5286,153.17,153.16,0.7123638]
[1727793045009,6.5283,153.18,153.16,0.7123638]
[1727793045413,6.5286,153.17,153.16,0.7123638]
[1727793046684,6.5283,153.18,153.16,0.7123638]
[1727793048090,6.1709,153.2,153.16,0.7123638]
[1727793048294,16.3136,153.25,153.17,7.83373807]
[1727793048295,6.5266,153.22,153.17,7.83373807]
[1727793048498,6.5271,153.21,153.16,0.7123638]
[1727793048789,6.5271,153.21,153.17,6.5286]
[1727793048988,6.4994,153.24,153.16,0.7123638]
[1727793049394,6.5283,153.18,153.16,0.7123638]
[1727793050513,6.5279,153.19,153.16,0.7123638]
[1727793051506,6.5275,153.2,153.16,2.01797239]
[1727793052513,6.5279,153.19,153.16,0.7123638]
[1727793053012,6.5282,153.18,153.16,0.7123638]
[1727793053312,6.5277,153.2,153.16,0.7123638]
[1727793053610,6.5278,153.19,153.16,0.7123638]
[1727793053803,20.0,153.22,153.16,0.7123638]
[1727793054110,6.5286,153.17,153.16,0.7123638]
[1727793056792,12.8989,153.17,153.16,0.7123638]
[1727793057196,32.8989,153.17,153.16,0.7123638]
[1727793057920,12.8989,153.17,153.16,0.7123638]
[1727793058896,6.5286,153.17,153.16,0.7123638]
[1727793061018,26.5286,153.17,153.16,0.7123638]
[1727793061907,6.5286,153.17,153.16,0.7123638]
[1727793065441,6.527,153.21,153.16,7.2413638]
[1727793065723,6.5286,153.17,153.16,0.7123638]
[1727793068619,20.0,153.2,153.16,0.7123638]
[1727793068826,6.5286,153.17,153.16,0.7123638]
[1727793070023,6.5282,153.18,153.16,0.7123638]
[1727793070327,16.6437,153.23,153.16,7.2412638]
[1727793070506,6.5274,153.2,153.16,0.7123638]
[1727793070706,20.0,153.22,153.16,0.7123638]
[1727793071026,16.6437,153.23,153.16,0.7123638]
[1727793071225,32.9598,153.23,153.16,0.7123638]
[1727793071414,6.5286,153.17,153.16,0.7123638]
[1727793071614,32.9598,153.23,153.16,0.7123638]
[1727793071813,6.4766,153.25,153.16,2.01804932]
[1727793072020,22.4889,153.29,153.2,6.5273]
[1727793072321,6.78954462,153.28,153.21,1.30518368]
[1727793072515,6.525,153.26,153.21,16.3165]
[1727793072820,6.5261,153.24,153.18,22.8487]
[1727793073518,6.5267,153.22,153.17,23.776884]
[1727793073828,6.78954462,153.28,153.19,23.776884]
[1727793074019,6.5274,153.2,153.17,23.776884]
[1727793074228,16.3121,153.26,153.17,23.776884]
[1727793074432,6.5266,153.22,153.17,23.776884]
[1727793075112,20.0,153.25,153.16,0.7123638]
[1727793075323,6.5277,153.2,153.16,0.7123638]
[1727793075827,6.1797,153.29,153.17,23.776884]
[1727793075828,6.5266,153.22,153.17,23.776884]
[1727793076039,6.527,153.21,153.16,23.5627638]
[1727793076409,20.0,153.26,153.16,0.7123638]
[1727793076740,20.0,153.24,153.17,1.30550856]
[1727793077108,6.5286,153.18,153.16,0.7123638]
[1727793077310,6.5286,153.17,153.16,0.7123638]
[1727793079231,6.5282,153.18,153.16,0.7123638]
[1727793079423,6.5278,153.2,153.16,0.7123638]
[1727793079736,16.3166,153.22,153.16,0.7123638]
[1727793079737,6.528,153.19,153.16,0.7123638]
[1727793080038,36.0187,153.24,153.16,2.01799197]
[1727793080214,6.5277,153.2,153.16,0.7123638]
[1727793080538,6.5279,153.19,153.16,0.7123638]
[1727793081926,36.0187,153.24,153.16,0.7123638]
[1727793082243,6.5286,153.17,153.16,0.7123638]
[1727793083919,16.3182,153.21,153.16,0.7123638]
[1727793084121,20.0,153.2,153.16,0.7123638]
[1727793084324,6.5286,153.17,153.16,0.7123638]
[1727793085416,20.0,153.2,153.1,5.61932487]
[1727793085417,6.5305,153.13,153.1,5.61932487]
[1727793085641,16.3212,153.18,153.1,5.61932487]
[1727793085642,6.53,153.14,153.11,1.30604766]
[1727793085943,16.3212,153.18,153.1,5.61932487]
[1727793086119,6.5308,153.12,153.1,5.61932487]
[1727793086821,6.5308,153.12,153.09,16.7657971]
[1727793087425,16.3212,153.18,153.1,1.30608183]
[1727793087624,16.3212,153.18,153.1,23.776884]
[1727793087625,6.53,153.14,153.1,23.776884]
[1727793088229,20.0,153.2,153.13,6.5303]
[1727793088230,6.5287,153.17,153.13,6.5303]
[1727793088423,6.5287,153.17,153.14,1.30580434]
[1727793088424,6.529,153.17,153.14,1.30580434]
[1727793088831,6.529,153.17,153.12,30.307584]
[1727793089018,6.529,153.17,153.1,16.3283]
[1727793089019,6.5292,153.16,153.11,30.307984]
[1727793089443,6.5296,153.15,153.11,23.776884]
[1727793089836,16.3177,153.21,153.11,23.776884]
[1727793090036,6.5292,153.16,153.11,23.776884]
[1727793090229,6.5277,153.2,153.14,6.5296]
[1727793090427,6.5277,153.2,153.15,7.83505598]
[1727793090739,6.5279,153.19,153.14,6.5298]
[1727793090924,6.5274,153.2,153.15,31.611731]
[1727793091120,6.5269,153.22,153.15,25.082431]
[1727793091337,16.0187,153.24,153.17,16.3214]
[1727793091539,6.5273,153.21,153.17,16.3214]
[1727793091720,16.0187,153.24,153.15,30.305984]
[1727793092046,15.2975,153.28,153.19,6.5277]
[1727793092249,15.2975,153.28,153.2,1.30526402]
[1727793092429,31.6076,153.28,153.2,1.30526402]
[1727793092626,6.5252,153.25,153.2,7.83236402]
[1727793092825,6.4915,153.29,153.21,23.776884]
[1727793093028,31.4022,153.32,153.21,23.776884]
[1727793093342,6.5253,153.25,153.2,16.3184]
[1727793093548,6.5257,153.24,153.2,23.776884]
[1727793093748,16.309,153.29,153.2,23.776884]
[1727793093956,16.309,153.29,153.17,6.5282]
[1727793093957,6.5261,153.23,153.17,6.5282]
[1727793094135,6.5261,153.23,153.18,23.776884]
[1727793094340,6.5271,153.21,153.16,32.6231]
[1727793094861,6.5262,153.23,153.17,1.30539754]
[1727793095156,6.5262,153.23,153.16,32.6231]
[1727793095446,6.5262,153.23,153.17,6.5285]
[1727793095659,6.5269,153.21,153.16,32.6231]
[1727793095833,6.5269,153.21,153.16,39.1522]
[1727793096035,6.5269,153.21,153.16,16.3217]
[1727793096247,6.5265,153.22,153.17,6.5286]
[1727793096830,6.5265,153.22,153.16,22.8507]
[1727793097243,6.5265,153.22,153.16,24.15607945]
[1727793097447,16.0549,153.25,153.16,16.3217]
[1727793097644,6.5273,153.21,153.16,16.3217]
[1727793098339,16.3143,153.24,153.14,6.0745]
[1727793098562,16.3143,153.24,153.13,32.3673]
[1727793098773,6.5278,153.2,153.15,1.3055548]
[1727793098934,6.5278,153.19,153.15,1.3055548]
[1727793099137,6.5278,153.19,153.14,6.5299]
[1727793099351,20.0,153.23,153.13,16.0415]
[1727793099538,6.529,153.17,153.12,6.5307]
[1727793099744,16.3174,153.22,153.11,5.61287644]
[1727793099954,20.0,153.21,153.12,1.30576698]
[1727793100264,6.5296,153.15,153.12,1.30576698]
[1727793100552,6.5296,153.15,153.1,29.0688]
[1727793101153,16.3193,153.2,153.1,22.5375]
[1727793101336,20.0,153.21,153.1,22.5375]
[1727793101337,20.0,153.22,153.13,6.5303]
[1727793101538,6.5283,153.18,153.14,1.30566539]
[1727793101752,16.0549,153.25,153.15,1.30567142]
[1727793102057,20.0,153.24,153.15,6.5295]